Cogmind - Beta 15 @@@ ROGUE MODE // 2025.06.02 @ 23:39:37 Player: Darcyisverycute Result: Self-destructed Performance ------------- Evolutions (3) 1500 Regions Visited (9) 1800 Robots Destroyed (0) 0 Value Destroyed (20) 20 Prototype IDs (2) 40 Alien Tech Used (0) 0 Bonus (928) 928 TOTAL SCORE: 4288 Bonus ------- Pacifist 928 Cogmind --------- Core Integrity 6/700 Matter 209/300 Energy 99/100 System Corruption 11% Temperature Cool (0) Movement Core (50) Location -7/Waste Parts ------- > --- POWER (1) -------- (None) > --- PROPULSION (5) --- (None) > --- UTILITY (5) ------ (None) > --- WEAPON (2) ------- (None) > --- INVENTORY (5) ---- Heavy Ion Engine Machine Analyzer Improved Signal Interpreter YOLO Cannon Peak State ------------ > --- POWER ------------ Heavy Ion Engine > --- PROPULSION ------- VTOL Module VTOL Module VTOL Module > --- UTILITY ---------- Advanced Visual Processing Unit Light Armor Plating Hacking Suite > --- WEAPON ----------- YOLO Cannon > --- INVENTORY -------- Ion Engine Signal Interpreter Light Armor Plating [Rating: 36] Favorites ----------- Power Heavy Ion Engine Engine Heavy Ion Engine Propulsion VTOL Module Treads Light Treads Flight Unit VTOL Module Utility Hacking Suite Device Improved Sensor Array Processor Advanced Visual Processing Unit Hackware Hacking Suite Protection Light Armor Plating Weapon YOLO Cannon Energy Cannon YOLO Cannon Build | -11 -10 -9 -9 -9 -8 -8 -8 -7 -7 ------- Run | Yrd Mat Mat Min Exi Min Mat Sto Fac Was Slots Evolved 6 | . . 2 . . . 2 . 2 . Power . | . . . . . . . . . . Propulsion 3 | . . 2 . . . 1 . . . Utility 3 | . . . . . . 1 . 2 . Weapon . | . . . . . . . . . . Parts Attached 16 | 2 . 6 . 1 . 3 3 1 . Power 2 | . . 2 . . . . . . . Engine 2 | . . 2 . . . . . . . Core . | . . . . . . . . . . Reactor . | . . . . . . . . . . Propulsion 5 | 2 . 3 . . . . . . . Treads 2 | 2 . . . . . . . . . Leg . | . . . . . . . . . . Wheel . | . . . . . . . . . . Hover . | . . . . . . . . . . Flight 3 | . . 3 . . . . . . . Utility 8 | . . 1 . . . 3 3 1 . Device 2 | . . . . . . 1 . 1 . Storage . | . . . . . . . . . . Processor 1 | . . . . . . 1 . . . Hackware 3 | . . . . . . 1 2 . . Protection 2 | . . 1 . . . . 1 . . Artifact . | . . . . . . . . . . Weapon 1 | . . . . 1 . . . . . Energy Gun . | . . . . . . . . . . Energy Cannon 1 | . . . . 1 . . . . . Ballistic Gun . | . . . . . . . . . . Ballistic Cannon . | . . . . . . . . . . Launcher . | . . . . . . . . . . Special Weapon . | . . . . . . . . . . Impact Weapon . | . . . . . . . . . . Slashing Weapon . | . . . . . . . . . . Piercing Weapon . | . . . . . . . . . . Special Melee Weapon . | . . . . . . . . . . Unidentified Prototypes 2 | . . 1 . 1 . . . . . Parts Lost 6 | . . . . . . . 1 4 1 Power . | . . . . . . . . . . Propulsion 3 | . . . . . . . 1 2 . Utility 3 | . . . . . . . . 2 1 Weapon . | . . . . . . . . . . Highest Loss Streak 2 | . . . . . . . 1 2 1 To Critical Strikes 1 | . . . . . . . 1 . . Average Backups 3 | . 1 3 5 4 4 3 3 3 4 Power . | . 1 . 1 1 1 . . . 1 Propulsion . | . . 1 2 1 . . . . . Utility 2 | . . 1 2 2 2 2 3 2 2 Weapon . | . . . . . 1 . . 1 1 Tool/Special . | . . . . . . . . . . Unused Backups 3 | . . . . . . 1 . . 2 Power . | . . . . . . . . . . Propulsion . | . . . . . . . . . . Utility 3 | . . . . . . 1 . . 2 Weapon . | . . . . . . . . . . Tool/Special . | . . . . . . . . . . Average Slot Usage (%) 47 | . 28 42 55 55 55 61 57 46 19 Engine 7 | . . 6 11 11 11 9 9 6 . Treads 2 | . 28 9 . . . . . . . Flight 17 | . . 22 33 33 33 27 22 5 . Device 4 | . . . . . . 5 4 9 . Processor 2 | . . . . . . 8 7 . . Hackware 10 | . . . . . . 7 12 23 19 Protection 3 | . . 4 11 11 11 3 . . . Peak Build Rating 36 | 2 2 10 10 30 12 36 33 24 11 Average Rating 14 | 1 2 7 10 11 12 20 19 19 9 On Entrance 9 | . 2 2 10 10 12 12 20 18 11 Naked Turns 10 | . . . . . . . . . 10 Heaviest Build 29 | . . 11 11 11 11 29 11 9 . Greatest Support 17 | 3 3 12 12 12 12 12 12 17 3 Greatest Overweight (x) 2 | . . . . . . 2 . 2 . Average Overweight (x) . | . . . . . . . . . . Largest Inventory Capacity 5 | 5 5 5 5 5 5 5 5 5 5 Average Capacity 5 | 5 5 5 5 5 5 5 5 5 5 Most Carried 5 | 1 2 5 5 5 5 5 5 5 5 Average Carried 4 | . 1 3 5 4 5 4 4 4 5 Final Capacity 5 | 5 5 5 5 5 5 5 5 5 5 Final Carried 5 | 1 2 5 5 5 5 5 5 5 5 Class Distribution -------------------- 48% | Sprinter 26% | Hacker-Mutant 16% | Hacker-Sprinter 8% | Mutant Dominant Class ---------------- Mutant | -10/Materials Sprinter | -9/Materials Sprinter | -9/Mines Sprinter | -9/Exiles Sprinter | -8/Mines Sprinter | -8/Materials Sprinter | -8/Storage Hacker-Mutant | -7/Factory Hacker-Mutant | -7/Waste Resources | -11 -10 -9 -9 -9 -8 -8 -8 -7 -7 ----------- Run | Yrd Mat Mat Min Exi Min Mat Sto Fac Was Matter Collected 267 | 111 . . . . . 156 . . . Remotely . | . . . . . . . . . . Salvage Created . | . . . . . . . . . . Parts . | . . . . . . . . . . Haulers Intercepted . | . . . . . . . . . . Recyclers Shooed . | . . . . . . . . . . Parts Field Recycled . | . . . . . . . . . . Retrieved Matter . | . . . . . . . . . . Parts Self-Destructed . | . . . . . . . . . . Prevented . | . . . . . . . . . . Kills | -11 -10 -9 -9 -9 -8 -8 -8 -7 -7 ------- Run | Yrd Mat Mat Min Exi Min Mat Sto Fac Was Combat Hostiles Destroyed . | . . . . . . . . . . Classes Destroyed . | . . . . . . . . . . Best Kill Streak . | . . . . . . . . . . Combat Bots Only . | . . . . . . . . . . Max Kills in Single Turn . | . . . . . . . . . . Gunslinging . | . . . . . . . . . . Exploded . | . . . . . . . . . . Melee . | . . . . . . . . . . Uniques/NPCs Destroyed . | . . . . . . . . . . Combat | -11 -10 -9 -9 -9 -8 -8 -8 -7 -7 -------- Run | Yrd Mat Mat Min Exi Min Mat Sto Fac Was Hostile Shots Fired 146 | . 6 18 . . 5 5 19 92 1 Missed 64 | . 2 9 . . 4 2 12 35 . Hits 82 | . 4 9 . . 1 3 7 57 1 Melee 2 | . . . . . . . . 1 1 Projectile 80 | . 4 9 . . 1 3 7 56 . Critical Strikes 2 | . 1 . . . . . 1 . . Damage Taken 1216 | . 53 116 . . 16 104 108 773 46 Core 811 | . 10 59 . . 16 . 32 648 46 Absorbed by Shields . | . . . . . . . . . . Core Remaining (%) 92 | 100 96 . . . 81 . 94 . . Volleys Fired 2 | . . . . . . 1 1 . . Largest 1 | . . . . . . 1 1 . . Hottest 100 | . . . . . . 100 100 . . Shots Fired 2 | . . . . . . 1 1 . . Gun . | . . . . . . . . . . Cannon 2 | . . . . . . 1 1 . . Launcher . | . . . . . . . . . . Special . | . . . . . . . . . . Kinetic . | . . . . . . . . . . Thermal 2 | . . . . . . 1 1 . . Explosive . | . . . . . . . . . . Electromagnetic . | . . . . . . . . . . Robot Hit Streak . | . . . . . . . . . . Robot Miss Streak . | . . . . . . . . . . Penetration Max . | . . . . . . . . . . Secondary Targets . | . . . . . . . . . . Shots Hit Robots . | . . . . . . . . . . Core Hits . | . . . . . . . . . . Critical Kills . | . . . . . . . . . . Critical Parts Destroyed . | . . . . . . . . . . Critical Strikes . | . . . . . . . . . . Melee Attacks . | . . . . . . . . . . Impact . | . . . . . . . . . . Slashing . | . . . . . . . . . . Piercing . | . . . . . . . . . . Sneak Attacks . | . . . . . . . . . . Combat Hostiles . | . . . . . . . . . . Follow-up Attacks . | . . . . . . . . . . Damage Inflicted 15 | . . . . . . . . 15 . Guns . | . . . . . . . . . . Cannons . | . . . . . . . . . . Explosions . | . . . . . . . . . . Melee . | . . . . . . . . . . Ramming 15 | . . . . . . . . 15 . Kinetic . | . . . . . . . . . . Thermal . | . . . . . . . . . . Explosive . | . . . . . . . . . . Electromagnetic . | . . . . . . . . . . Impact . | . . . . . . . . . . Slashing . | . . . . . . . . . . Piercing . | . . . . . . . . . . Highest Corruption 11 | . . . . . . . . 1 11 Average Corruption 3 | . . . . . . . . 1 7 Corruption Purged . | . . . . . . . . . . Corruption Blocked . | . . . . . . . . . . Effects 3 | . . . . . . . . 1 2 Heat Flow Errors 2 | . . . . . . . . . 2 Data Loss (minor) 1 | . . . . . . . . 1 . Overload Shots . | . . . . . . . . . . Overflow Damage . | . . . . . . . . . . Projectiles . | . . . . . . . . . . Explosions . | . . . . . . . . . . Melee . | . . . . . . . . . . Knockbacks . | . . . . . . . . . . Impact . | . . . . . . . . . . Kinetic . | . . . . . . . . . . Secondary . | . . . . . . . . . . Self-Inflicted Damage 69 | . . . . . . 62 . 7 . Shots 1 | . . . . . . 1 . . . Rammed 3 | . . . . . . . . 3 . Targets Rammed 3 | . . . . . . . . 3 . Kicked . | . . . . . . . . . . Crushed . | . . . . . . . . . . Highest Temperature 212 | . 2 5 . . 2 44 8 . 212 Average Temperature 49 | . 2 3 . . 2 26 5 . 93 Received Heat Transfer 321 | . 48 27 . . 9 27 27 183 . Siege Activations . | . . . . . . . . . . Martial Activations . | . . . . . . . . . . Shielding Activations . | . . . . . . . . . . Robots Disrupted . | . . . . . . . . . . Combat Hostiles . | . . . . . . . . . . Robots Corrupted . | . . . . . . . . . . Combat Hostiles . | . . . . . . . . . . Parts Fried . | . . . . . . . . . . Impact Corruptions . | . . . . . . . . . . Robots Melted . | . . . . . . . . . . Combat Hostiles . | . . . . . . . . . . Parts Melted . | . . . . . . . . . . Heat Transferred . | . . . . . . . . . . Parts Sabotaged . | . . . . . . . . . . Parts Stolen . | . . . . . . . . . . Parts Stripped . | . . . . . . . . . . Power Chain Reactions . | . . . . . . . . . . Alert | -11 -10 -9 -9 -9 -8 -8 -8 -7 -7 ------- Run | Yrd Mat Mat Min Exi Min Mat Sto Fac Was Maximum Alert Level . | . . . . . . . . . . Low Security (%) 100 | 100 100 100 100 . 100 100 100 100 100 Level 1 . | . . . . . . . . . . Level 2 . | . . . . . . . . . . Level 3 . | . . . . . . . . . . Level 4 . | . . . . . . . . . . Level 5 . | . . . . . . . . . . High Security . | . . . . . . . . . . Max Security . | . . . . . . . . . . Peak Influence 83 | . 5 15 5 . 15 52 83 75 26 Initial 32 | . . . 5 . . 5 17 32 26 Average 20 | . 1 1 5 . . 28 45 24 17 Influence Increases 343 | . 5 15 . . 15 87 86 135 . Successful Hack 22 | . 5 . . . . 11 6 . . Disable Machine 30 | . . . . . . 15 15 . . Destroy Structure 21 | . . . . . . 16 5 . . Partial Spotted 75 | . . 15 . . . 30 30 . . Lose Combat Pursuer 195 | . . . . . 15 15 30 135 . Influence Decreases 343 | . 5 . 10 5 . 60 55 133 75 Entered New Map 140 | . . . 10 5 . 10 25 41 49 Time Decay 151 | . 5 . . . . 50 20 60 16 Lost Part 52 | . . . . . . . 10 32 10 Squads Dispatched 5 | . 1 1 . . . 1 1 1 . Investigation 2 | . 1 . . . . . . 1 . Extermination . | . . . . . . . . . . Reinforcement 3 | . . 1 . . . 1 1 . . Assault . | . . . . . . . . . . Garrison . | . . . . . . . . . . Intercept . | . . . . . . . . . . Searches Triggered . | . . . . . . . . . . Construction Impeded . | . . . . . . . . . . Haulers Reinforced . | . . . . . . . . . . Active Scanning Responses . | . . . . . . . . . . Cargo Convoy Interrupts . | . . . . . . . . . . Stealth | -11 -10 -9 -9 -9 -8 -8 -8 -7 -7 --------- Run | Yrd Mat Mat Min Exi Min Mat Sto Fac Was Distress Signals 3 | . . 2 . . . 1 . . . Communications Jammed . | . . . . . . . . . . Distress Signals . | . . . . . . . . . . Times Spotted 57 | . 3 13 . . 4 6 11 15 5 Peak Tracking Total 13 | . 3 12 . . 4 6 7 13 5 Tactical Retreats 6 | . . . . . 1 1 1 3 . Traps | -11 -10 -9 -9 -9 -8 -8 -8 -7 -7 ------- Run | Yrd Mat Mat Min Exi Min Mat Sto Fac Was Traps Triggered 3 | . . . . . . . . 3 . Indirectly . | . . . . . . . . . . Trap Hack Attempts . | . . . . . . . . . . Triggered . | . . . . . . . . . . Disarmed . | . . . . . . . . . . Reprogrammed . | . . . . . . . . . . Reused . | . . . . . . . . . . Traps Extracted . | . . . . . . . . . . Installed . | . . . . . . . . . . Triggered . | . . . . . . . . . . Machines | -11 -10 -9 -9 -9 -8 -8 -8 -7 -7 ---------- Run | Yrd Mat Mat Min Exi Min Mat Sto Fac Was Machines Disabled 2 | . . . . . . 1 1 . . Max in Single Turn 1 | . . . . . . 1 1 . . Machines Repaired . | . . . . . . . . . . Machines Dismantled . | . . . . . . . . . . Machines Sabotaged . | . . . . . . . . . . Overloaded Fab Kills . | . . . . . . . . . . Hacking | -11 -10 -9 -9 -9 -8 -8 -8 -7 -7 --------- Run | Yrd Mat Mat Min Exi Min Mat Sto Fac Was Machines Accessed 7 | . 1 . . . . 2 2 2 . Terminals 7 | . 1 . . . . 2 2 2 . Fabricators . | . . . . . . . . . . Repair Stations . | . . . . . . . . . . Recycling Units . | . . . . . . . . . . Scanalyzers . | . . . . . . . . . . Garrison Access . | . . . . . . . . . . Total Hacks 23 | . 7 . . . . 10 3 3 . Successful 7 | . 2 . . . . 3 2 . . Failed 16 | . 5 . . . . 7 1 3 . Catastrophic 5 | . 1 . . . . 1 . 3 . Database Lockouts . | . . . . . . . . . . Manual 17 | . 5 . . 1 . 8 . 3 . Terminals 23 | . 7 . . . . 10 3 3 . Fabricators . | . . . . . . . . . . Repair Stations . | . . . . . . . . . . Recycling Units . | . . . . . . . . . . Scanalyzers . | . . . . . . . . . . Garrison Access . | . . . . . . . . . . Terminal Hacks 5 | . 1 . . . . 2 2 . . Open Door 2 | . . . . . . . 2 . . Branch Access Points 1 | . . . . . . 1 . . . Zone Layout 2 | . 1 . . . . 1 . . . Fabricator Hacks . | . . . . . . . . . . Repair Station Hacks . | . . . . . . . . . . Recycling Unit Hacks . | . . . . . . . . . . Scanalyzer . | . . . . . . . . . . Garrison Access Hacks . | . . . . . . . . . . Unauthorized Hacks 2 | . 1 . . . . 1 . . . Terminals 2 | . 1 . . . . 1 . . . Botnet 2 | . 1 . . . . 1 . . . Fabricators . | . . . . . . . . . . Repair Stations . | . . . . . . . . . . Recycling Units . | . . . . . . . . . . Scanalyzers . | . . . . . . . . . . Garrison Access . | . . . . . . . . . . Data Cores Recovered . | . . . . . . . . . . Used . | . . . . . . . . . . Hacking Detections 5 | . 1 . . . . 2 . 2 . Full Trace Events 4 | . 1 . . . . 2 . 1 . Feedback Events 1 | . . . . . . . . 1 . Corruption 1 | . . . . . . . . 1 . Feedback Blocked . | . . . . . . . . . . Robot Schematics Acquired . | . . . . . . . . . . Robots Built . | . . . . . . . . . . Authchips . | . . . . . . . . . . Time . | . . . . . . . . . . Total Robot Build Rating . | . . . . . . . . . . Part Schematics Acquired . | . . . . . . . . . . Parts Built . | . . . . . . . . . . Authchips . | . . . . . . . . . . Time . | . . . . . . . . . . Total Part Build Rating . | . . . . . . . . . . Parts Repaired . | . . . . . . . . . . Time . | . . . . . . . . . . Parts Recycled . | . . . . . . . . . . Recycled Matter . | . . . . . . . . . . Retrieved Matter . | . . . . . . . . . . Retrieved Components . | . . . . . . . . . . Parts Scanalyzed . | . . . . . . . . . . Part Schematics Acquired . | . . . . . . . . . . Parts Damaged . | . . . . . . . . . . Bothacking | -11 -10 -9 -9 -9 -8 -8 -8 -7 -7 ------------ Run | Yrd Mat Mat Min Exi Min Mat Sto Fac Was Used RIF Installer . | . . . . . . . . . . Robots Hacked . | . . . . . . . . . . Non-combat . | . . . . . . . . . . Combat . | . . . . . . . . . . Robot Hacks Applied . | . . . . . . . . . . Relay Couplers Released . | . . . . . . . . . . Fabnet Peak Effective % . | . . . . . . . . . . Robots Rewired . | . . . . . . . . . . Allies Hacked . | . . . . . . . . . . Hacks Repelled . | . . . . . . . . . . Allies | -11 -10 -9 -9 -9 -8 -8 -8 -7 -7 -------- Run | Yrd Mat Mat Min Exi Min Mat Sto Fac Was Total Allies . | . . . . . . . . . . Largest Group . | . . . . . . . . . . Highest-Rated Group . | . . . . . . . . . . Highest-Rated Ally . | . . . . . . . . . . Total Orders . | . . . . . . . . . . Ally Attacks . | . . . . . . . . . . Total Damage . | . . . . . . . . . . Kills . | . . . . . . . . . . Allies Corrupted . | . . . . . . . . . . Allies Melted . | . . . . . . . . . . Intel | -11 -10 -9 -9 -9 -8 -8 -8 -7 -7 ------- Run | Yrd Mat Mat Min Exi Min Mat Sto Fac Was Active Infowar (turns) 247 | . . . . . . 100 38 109 . Optics 138 | . . . . . . 100 38 . . Sensors 195 | . . . . . . 72 14 109 . Robot Analysis Total . | . . . . . . . . . . Derelict Logs Recovered . | . . . . . . . . . . Drone Launches . | . . . . . . . . . . Drone Recoveries . | . . . . . . . . . . Exploration | -11 -10 -9 -9 -9 -8 -8 -8 -7 -7 ------------- Run | Yrd Mat Mat Min Exi Min Mat Sto Fac Was Turns Passed 562 | 18 27 54 3 61 30 102 50 171 46 Spaces Moved 1407 | 27 52 125 11 198 101 292 128 384 89 Core 412 | 27 52 21 . . . . . 223 89 Treads . | . . . . . . . . . . Legs . | . . . . . . . . . . Wheels . | . . . . . . . . . . Hover . | . . . . . . . . . . Flight 995 | . . 104 11 198 101 292 128 161 . Fastest Speed 29 | 50 50 29 29 29 29 29 29 32 50 Average Speed 35 | 50 50 32 29 29 29 30 30 42 50 Slowest Speed 189 | 50 50 75 29 29 29 189 32 150 50 Overloaded Moves . | . . . . . . . . . . Propulsion Burnouts . | . . . . . . . . . . Robots Hopped 25 | . . 10 . 1 1 10 3 . . Potential Cave-ins . | . . . . . . . . . . Cave-ins Triggered . | . . . . . . . . . . Exploration Rate (%) 34 | 4 20 22 4 60 40 48 47 11 85 Regions Visited 9 Branch Regions 4 Pre-discovered Areas . | . . . . . . . . . . Known Exits Taken 1 | . . . . . . 1 . . . Unknown Exits Taken 7 | 1 1 1 1 1 1 . 1 . . Scrap Searched . | . . . . . . . . . . Spaces Dug . | . . . . . . . . . . Terrain Destroyed 23 | . . . . . . 18 5 . . Melee . | . . . . . . . . . . Projectile 1 | . . . . . . 1 . . . AOE 22 | . . . . . . 17 5 . . Terrain Rammed . | . . . . . . . . . . Walls Destroyed . | . . . . . . . . . . Machines Disabled . | . . . . . . . . . . Actions | -11 -10 -9 -9 -9 -8 -8 -8 -7 -7 --------- Run | Yrd Mat Mat Min Exi Min Mat Sto Fac Was Total 1419 | 29 52 125 10 200 99 292 132 390 90 Wait 2 | . . 1 . . . . . . 1 Move 1352 | 26 51 107 10 195 98 271 121 384 89 Hop 22 | . . 7 . 1 1 10 3 . . Pick Up 6 | 1 1 2 . . . 2 . . . Fast Attach 13 | 2 . 4 . 1 . 3 2 1 . Attach 4 | . . 1 . . . 1 1 1 . Detach 7 | . . 2 . 1 . 1 2 1 . Swap 2 | . . 1 . . . . 1 . . Drop 6 | . . . . 2 . 3 1 . . Fire 2 | . . . . . . 1 1 . . Melee . | . . . . . . . . . . Ram 3 | . . . . . . . . 3 . Kick . | . . . . . . . . . . Crush . | . . . . . . . . . . Escape Stasis . | . . . . . . . . . . Rewire . | . . . . . . . . . . Trap . | . . . . . . . . . . Miscellaneous . | . . . . . . . . . . Route ------- -11/Scrapyard -10/Materials -9/Materials -9/Mines -9/Exiles -8/Mines -8/Materials (discovered 2 exits: *Sto x2) -8/Storage -7/Factory -7/Waste (discovered 1 exit: [*Fac]) History --------- Turn | Location | Event 10 | -11/Scrapyard | Discovered new exit (range 15) 19 | -11/Scrapyard | Entered Materials 29 | -10/Materials | Discovered new exit (range 22) 46 | -10/Materials | Entered another Materials area 46 | -9/Materials | Evolved 2 slots: Propulsion x2 94 | -9/Materials | Discovered new exit (range 16) 100 | -9/Materials | Entered Mines 102 | -9/Mines | Deemed a non-threat by the Exiles lab entrance 102 | -9/Mines | Discovered new exit (range 5) 103 | -9/Mines | Entered Exiles 103 | -9/Exiles | Found Exiles lab destroyed 132 | -9/Exiles | Opened EX-Vault 133 | -9/Exiles | Found Prototype Energy Cannon 133 | -9/Exiles | Identified YOLO Cannon 160 | -9/Exiles | Discovered new exit (range 14) 164 | -9/Exiles | Entered Mines 190 | -8/Mines | Discovered new exit (range 14) 194 | -8/Mines | Entered Materials 194 | -8/Materials | Evolved 2 slots: Propulsion x1, Utility x1 268 | -8/Materials | Identified exit to Storage 296 | -8/Materials | Entered Storage 342 | -8/Storage | Discovered new exit (range 15) 346 | -8/Storage | Entered Factory 346 | -7/Factory | Evolved 2 slots: Utility x2 508 | -7/Factory | Core integrity fell below 50% 514 | -7/Factory | Core integrity fell below 20% 517 | -7/Factory | Manually triggered Chute Trap 517 | -7/Factory | Sucked down chute 517 | -7/Factory | Entered Waste 521 | -7/Waste | Spotted C-40 Crusher 532 | -7/Waste | EMP discharged 532 | -7/Waste | System corruption reached 10% 535 | -7/Waste | Spotted C-40 Crusher 540 | -7/Waste | Spotted C-40 Crusher 541 | -7/Waste | Spotted C-40 Crusher 547 | -7/Waste | Spotted C-40 Crusher 548 | -7/Waste | Spotted C-40 Crusher 553 | -7/Waste | Crushed by Compactor (1 part destroyed, 2 dropped) 558 | -7/Waste | Discovered new exit (range 12) 563 | -7/Waste | Self-destructed Last Messages --------------- 00489_ A bubble of electromagnetic force engulfs the area. 00503_ Adv. Weight Redist. System destroyed. 00507_ Slammed into S-27 Virus. 00516_ S-27 Virus destroyed. 00517_ Triggered Chute Trap. [Achievement: Wheee!] 00517_ A hatch slides open and sucks a vortex of air into the floor. LOCATION=UNKNOWN GOAL=ESCAPE 00522_ ALERT: Foreign system detected. Charging EMP. 00532_ Broken Weapon Cycler fried beyond repair. 00532_ Prototype Protection fried beyond repair. 00532_ System corrupted (+10). 00538_ System corrupted: Heat flow error (+246). 00553_ Hacking Suite crushed. 00554_ System corrupted: Heat flow error (+173). 00558_ EXIT=FOUND Map ----- +----------------------------------------------------+ | # #??????# #??????????????????????????????? | | # #??????# #??????????????????????????????? | | # #??????# #??????????????????????????????? | | # #??????# =#??????????????????????????????? | | # ######## ###????????????????????????????? | | [ #????????????????????????????? | | #????????????????????????????? | | #????????????????????????????? | | #????????????????????????????? | | # ######## ###????????????????????????????? | | # #??????# #??????????????????????????????? | | # #??????# #??????????????????????????????? | | # #??????# #??????????????????????????????? | | # #??????# ###????????????????????????????? | | # #??????# #????????????????????????????? | | # #??????# ]#????????????????????????????? | | # #??????# #????????????????????????????? | | # #??????# #????????????????????????????? | | # #??????# ###????????????????????????????? | | # #??????# #??############????????????????? | | # #??????# #??# #????????????????? | | # #??????# #??# #????????????????? | | # #??????# #### #????????????????? | | #??????# #????????????????? | | #??????# ! #????????????????? | | #??????# @< #????????????????? | | #??????# #????????????????? | | # #??????# #### #????????????????? | | # #??????# #??# #????????????????? | | # #??????# #??# #????????????????? | | # #??????# #??############????????????????? | | # #??????# #??????????????????????????????? | | ######??????######??????????????????????????????? | | ????????????????????????????????????????????????? | | ????????????????????????????????????????????????? | | ????????????????????????????????????????????????? | | ????????????????????????????????????????????????? | | ????????????????????????????????????????????????? | | ????????????????????????????????????????????????? | | ????????????????????????????????????????????????? | | ????????????????????????????????????????????????? | | ????????????????????????????????????????????????? | | ????????????????????????????????????????????????? | | ????????????????????????????????????????????????? | | ????????????????????????????????????????????????? | | ????????????????????????????????????????????????? | | ????????????????????????????????????????????????? | | ????????????????????????????????????????????????? | | ????????????????????????????????????????????????? | | ????????????????????????????????????????????????? | +----------------------------------------------------+ Best States ------------- Heat Dissipation 34 Energy Generation 14 Energy Capacity 280 Matter Stores 237 Matter Capacity 300 Sight Range 20 Robot Scan Range 15 Terrain Scan Density 10 Additional Mass Support 9 Armor Coverage 150 Evasion (%) 64 Offensive Hacking 30 Item Schematics ----------------- None Robot Schematics ------------------ None Fabricated ------------ Nothing Repaired ---------- Nothing Alien Tech Used ----------------- None Achievements -------------- Wheee! Challenges ------------ None Game ------ Seed BarrageBottomlessChip Manual? 0 Play Time 00:10:52 Cumulative 275.9 hours Start 2025.06.02 @ 23:29:15 End 2025.06.02 @ 23:39:37 Sessions 1 Manual Loads 0 Difficulty Rogue Special Mode None Game No. 146 Rogue 138 Adventurer 8 Explorer 0 Win Type - Total 11 Types 6/0/2/2/0/0/0/0/0/1 Lore% 86 Gallery% 83 Achievement% 73 Wizard Run 0 Options --------- Layout 2 ASCII 0 Keyboard 1 Movement Numpad Keybinds 1 Fullscreen 1 Font 48/Smallcaps Map View 50x44 Zoom Use 0% Tactical HUD 1 Map Filters NONE Filters NONE Steam 1 RUN: c73645e1-936c-4beb-9024-f3c187455348